[Event "Dalheimers Hus Rapid Open"]
[Site "Dalheimers Hus, Slottsskogsgatan 12, Gothenburg, Sweden"]
[Date "2024.04.14"]
[Round "1.1"]
[White "Frisk, Anders"]
[Black "Seo, Jung Min"]
[Result "0-1"]
[TimeControl "15 minutes + 5 seconds per move from move one."]
[BlackTitle "IM"]
[WhiteFideId "1718797"]
[BlackFideId "1734687"]
[WhiteElo "1830"]
[BlackElo "2450"]

1. c4 {[%clk 00:15:08]} {[%emt 00:00:01]} Nf6 {[%clk 00:15:07]} {[%emt
00:00:04]} 2. Nc3 {[%clk 00:15:10]} {[%emt 00:00:03]} e6 {[%clk 00:15:10]}
{[%emt 00:00:02]} 3. e4 {[%clk 00:15:08]} {[%emt 00:00:07]} c5 {[%clk
00:15:14]} 4. g3 {[%clk 00:14:41]} {[%emt 00:00:32]} Nc6 {[%clk 00:15:14]}
{[%emt 00:00:04]} 5. Bg2 {[%clk 00:14:43]} {[%emt 00:00:03]} Be7 {[%clk
00:14:41]} {[%emt 00:00:38]} 6. Nge2 {[%clk 00:14:41]} {[%emt 00:00:07]} O-O
{[%clk 00:14:44]} {[%emt 00:00:03]} 7. O-O {[%clk 00:14:39]} {[%emt 00:00:07]}
Rb8 {[%clk 00:14:39]} {[%emt 00:00:10]} 8. d3 {[%clk 00:14:15]} {[%emt
00:00:29]} a6 {[%clk 00:14:35]} {[%emt 00:00:09]} 9. a4 {[%clk 00:14:10]}
{[%emt 00:00:10]} d6 {[%clk 00:14:23]} {[%emt 00:00:17]} 10. h3 {[%clk
00:13:38]} {[%emt 00:00:37]} Bd7 {[%clk 00:14:23]} {[%emt 00:00:04]} 11. Be3
{[%clk 00:12:40]} {[%emt 00:01:04]} Qb6 {[%clk 00:13:01]} {[%emt 00:01:27]} 12.
Rb1 {[%clk 00:11:14]} {[%emt 00:01:31]} Rfc8 {[%clk 00:12:26]} {[%emt
00:00:39]} 13. b3 {[%clk 00:10:07]} {[%emt 00:01:12]} Qd8 {[%clk 00:12:05]}
{[%emt 00:00:26]} 14. d4 {[%clk 00:09:46]} {[%emt 00:00:27]} cxd4 {[%clk
00:12:09]} 15. Nxd4 {[%clk 00:09:48]} {[%emt 00:00:03]} Nxd4 {[%clk 00:11:47]}
{[%emt 00:00:27]} 16. Qxd4 {[%clk 00:08:59]} {[%emt 00:00:54]} Bc6 {[%clk
00:10:55]} {[%emt 00:00:57]} 17. Rfd1 {[%clk 00:08:44]} {[%emt 00:00:20]} Nd7
{[%clk 00:10:51]} {[%emt 00:00:09]} 18. f4 {[%clk 00:07:56]} {[%emt 00:00:53]}
Qc7 {[%clk 00:10:06]} {[%emt 00:00:49]} 19. Rdc1 {[%clk 00:06:53]} {[%emt
00:01:09]} Bf6 {[%clk 00:09:57]} {[%emt 00:00:14]} 20. Qd2 {[%clk 00:06:20]}
{[%emt 00:00:38]} b6 {[%clk 00:07:22]} {[%emt 00:02:40]} 21. Nd5 {[%clk
00:05:42]} {[%emt 00:00:42]} Qd8 {[%clk 00:07:26]} 22. Nxf6+ {[%clk 00:05:32]}
{[%emt 00:00:15]} Nxf6 {[%clk 00:07:30]} 23. Qd3 {[%clk 00:04:51]} {[%emt
00:00:47]} Qc7 {[%clk 00:07:29]} {[%emt 00:00:06]} 24. Rd1 {[%clk 00:04:40]}
{[%emt 00:00:16]} Qb7 {[%clk 00:07:27]} {[%emt 00:00:06]} 25. Rd2 {[%clk
00:03:23]} {[%emt 00:01:22]} Nxe4 {[%clk 00:07:09]} {[%emt 00:00:23]} 26. Rdd1
{[%clk 00:02:13]} {[%emt 00:01:15]} Nxg3 {[%clk 00:07:01]} {[%emt 00:00:14]} 27.
Bxc6 {[%clk 00:02:15]} {[%emt 00:00:03]} Qxc6 {[%clk 00:07:05]} 28. Kh2 {[%clk
00:01:57]} {[%emt 00:00:22]} Nf5 {[%clk 00:07:05]} {[%emt 00:00:04]} 29. Bf2
{[%clk 00:01:51]} {[%emt 00:00:11]} Rd8 {[%clk 00:06:59]} {[%emt 00:00:12]} 30.
Rbc1 {[%clk 00:01:42]} {[%emt 00:00:15]} h6 {[%clk 00:06:58]} {[%emt 00:00:04]}
31. Rc2 {[%clk 00:01:25]} {[%emt 00:00:22]} Qc7 {[%clk 00:06:58]} {[%emt
00:00:05]} 32. Qe4 {[%clk 00:01:03]} {[%emt 00:00:27]} Rbc8 {[%clk 00:06:46]}
{[%emt 00:00:17]} 33. Rdc1 {[%clk 00:00:44]} {[%emt 00:00:24]} Qb8 {[%clk
00:06:31]} {[%emt 00:00:20]} 34. Qe2 {[%clk 00:00:38]} {[%emt 00:00:12]} d5
{[%clk 00:06:33]} {[%emt 00:00:03]} 35. Qf3 {[%clk 00:00:29]} {[%emt 00:00:14]}
dxc4 {[%clk 00:06:32]} {[%emt 00:00:06]} 36. Rxc4 {[%clk 00:00:31]} {[%emt
00:00:03]} Rxc4 {[%clk 00:06:36]} 37. Rxc4 {[%clk 00:00:32]} {[%emt 00:00:04]}
b5 {[%clk 00:06:37]} {[%emt 00:00:04]} 38. axb5 {[%clk 00:00:26]} {[%emt
00:00:11]} Qxb5 {[%clk 00:06:39]} {[%emt 00:00:03]} 39. Rc5 {[%clk 00:00:22]}
{[%emt 00:00:09]} Qd3 {[%clk 00:06:32]} {[%emt 00:00:11]} 40. Qxd3 {[%clk
00:00:13]} {[%emt 00:00:14]} Rxd3 {[%clk 00:06:36]} {[%emt 00:00:01]} 41. Ra5
{[%clk 00:00:12]} {[%emt 00:00:07]} Rxb3 {[%clk 00:06:34]} {[%emt 00:00:07]} 42.
Rxa6 {[%clk 00:00:15]} {[%emt 00:00:02]} Rf3 {[%clk 00:06:35]} {[%emt
00:00:02]} 43. Ra4 {[%clk 00:00:17]} {[%emt 00:00:05]} Rxf2+ {[%clk 00:06:37]}
{[%emt 00:00:03]} 0-1

[Event "Dalheimers Hus Rapid Open"]
[Site "Dalheimers Hus, Slottsskogsgatan 12, Gothenburg, Sweden"]
[Date "2024.04.14"]
[Round "1.2"]
[White "Johansson, Linus"]
[Black "Karlsson, Mats"]
[Result "1-0"]
[TimeControl "15 minutes + 5 seconds per move from move one."]
[WhiteTitle "IM"]
[WhiteFideId "1711113"]
[BlackFideId "1779575"]
[WhiteElo "2427"]
[BlackElo "1822"]

1. d4 {[%clk 00:15:08]} {[%emt 00:00:02]} Nf6 {[%clk 00:15:09]} {[%emt
00:00:02]} 2. c4 {[%clk 00:15:11]} g6 {[%clk 00:15:11]} {[%emt 00:00:03]} 3.
Nc3 {[%clk 00:15:15]} {[%emt 00:00:01]} Bg7 {[%clk 00:15:15]} {[%emt 00:00:02]}
4. e4 {[%clk 00:15:19]} {[%emt 00:00:01]} d6 {[%clk 00:15:18]} {[%emt
00:00:02]} 5. Be2 {[%clk 00:15:22]} O-O {[%clk 00:15:18]} {[%emt 00:00:05]} 6.
Be3 {[%clk 00:15:26]} e5 {[%clk 00:15:13]} {[%emt 00:00:10]} 7. d5 {[%clk
00:15:29]} {[%emt 00:00:02]} c5 {[%clk 00:14:34]} {[%emt 00:00:44]} 8. g4
{[%clk 00:15:13]} {[%emt 00:00:21]} Qa5 {[%clk 00:14:03]} {[%emt 00:00:37]} 9.
Bd2 {[%clk 00:15:08]} {[%emt 00:00:10]} Nbd7 {[%clk 00:10:26]} {[%emt
00:03:42]} 10. h4 {[%clk 00:14:58]} {[%emt 00:00:14]} h5 {[%clk 00:08:21]}
{[%emt 00:02:10]} 11. gxh5 {[%clk 00:14:49]} {[%emt 00:00:14]} gxh5 {[%clk
00:08:24]} {[%emt 00:00:02]} 12. Nh3 {[%clk 00:14:32]} {[%emt 00:00:23]} Nh7
{[%clk 00:06:23]} {[%emt 00:02:06]} 13. Ng5 {[%clk 00:14:04]} {[%emt 00:00:33]}
Ndf6 {[%clk 00:06:10]} {[%emt 00:00:18]} 14. Bxh5 {[%clk 00:12:57]} {[%emt
00:01:11]} Qc7 {[%clk 00:06:07]} {[%emt 00:00:08]} 15. Be2 {[%clk 00:12:33]}
{[%emt 00:00:29]} a6 {[%emt 00:00:07]} 16. a4 {[%clk 00:12:32]} {[%emt
00:00:05]} Ne8 {[%clk 00:05:44]} {[%emt 00:00:26]} 17. Ra3 {[%clk 00:12:23]}
{[%emt 00:00:15]} f5 {[%clk 00:05:47]} {[%emt 00:00:02]} 18. exf5 {[%clk
00:12:13]} {[%emt 00:00:14]} Bxf5 {[%clk 00:05:50]} {[%emt 00:00:02]} 19. Ne6
{[%clk 00:12:16]} {[%emt 00:00:02]} Bxe6 {[%clk 00:05:53]} {[%emt 00:00:02]} 20.
dxe6 {[%clk 00:12:20]} Qe7 {[%clk 00:05:41]} {[%emt 00:00:18]} 21. Bg4 {[%clk
00:12:16]} {[%emt 00:00:09]} Qf6 {[%clk 00:05:45]} 22. Qe2 {[%clk 00:12:00]}
{[%emt 00:00:21]} Bh6 {[%clk 00:05:38]} {[%emt 00:00:12]} 23. Nd5 {[%clk
00:11:53]} {[%emt 00:00:12]} Bxd2+ {[%clk 00:05:39]} {[%emt 00:00:03]} 24. Qxd2
{[%clk 00:11:51]} {[%emt 00:00:07]} Qg7 {[%clk 00:05:22]} {[%emt 00:00:22]} 25.
Rg3 {[%clk 00:11:41]} {[%emt 00:00:15]} Kh8 {[%clk 00:05:25]} {[%emt 00:00:04]}
26. Bh5 {[%clk 00:11:37]} {[%emt 00:00:08]} 1-0

[Event "Dalheimers Hus Rapid Open"]
[Site "Dalheimers Hus, Slottsskogsgatan 12, Gothenburg, Sweden"]
[Date "2024.04.14"]
[Round "1.3"]
[White "Kangru-Bernehag, Niklas"]
[Black "Hellers, Ferdinand"]
[Result "0-1"]
[TimeControl "15 minutes + 5 seconds per move from move one."]
[BlackTitle "GM"]
[WhiteFideId "1742400"]
[BlackFideId "1700022"]
[WhiteElo "1805"]
[BlackElo "2410"]

1. e4 {[%clk 00:15:08]} {[%emt 00:00:01]} g6 {[%clk 00:14:52]} {[%emt
00:00:18]} 2. Nc3 {[%clk 00:15:11]} {[%emt 00:00:02]} Bg7 {[%clk 00:14:55]}
{[%emt 00:00:01]} 3. f4 {[%clk 00:15:16]} c6 {[%clk 00:14:40]} {[%emt
00:00:20]} 4. Nf3 {[%clk 00:15:02]} {[%emt 00:00:18]} d5 {[%clk 00:14:43]}
{[%emt 00:00:03]} 5. d4 {[%clk 00:12:59]} {[%emt 00:02:08]} dxe4 {[%clk
00:14:36]} {[%emt 00:00:12]} 6. Nxe4 {[%clk 00:13:02]} {[%emt 00:00:02]} Nd7
{[%clk 00:14:14]} {[%emt 00:00:26]} 7. c3 {[%clk 00:12:17]} {[%emt 00:00:51]}
Ngf6 {[%clk 00:14:13]} {[%emt 00:00:05]} 8. Ng3 {[%clk 00:12:12]} {[%emt
00:00:11]} O-O {[%clk 00:14:10]} {[%emt 00:00:08]} 9. Bd3 {[%clk 00:11:32]}
{[%emt 00:00:46]} c5 {[%clk 00:14:01]} {[%emt 00:00:13]} 10. O-O {[%clk
00:10:44]} {[%emt 00:00:53]} b6 {[%clk 00:12:18]} {[%emt 00:01:48]} 11. f5
{[%clk 00:10:23]} {[%emt 00:00:26]} Bb7 {[%clk 00:12:01]} {[%emt 00:00:21]} 12.
Bg5 {[%clk 00:06:16]} {[%emt 00:04:13]} cxd4 {[%clk 00:10:55]} {[%emt
00:01:12]} 13. Nxd4 {[%clk 00:06:10]} {[%emt 00:00:11]} Ne5 {[%clk 00:10:37]}
{[%emt 00:00:22]} 14. Bc2 {[%clk 00:05:31]} {[%emt 00:00:45]} Nc6 {[%clk
00:06:00]} {[%emt 00:04:41]} 15. Nf3 {[%clk 00:03:34]} {[%emt 00:02:02]} Qxd1
{[%clk 00:05:44]} {[%emt 00:00:21]} 16. Raxd1 {[%clk 00:03:37]} Rac8 {[%clk
00:05:03]} {[%emt 00:00:48]} 17. Bb3 {[%clk 00:03:24]} {[%emt 00:00:19]} Na5
{[%clk 00:04:56]} {[%emt 00:00:11]} 18. fxg6 {[%clk 00:02:31]} {[%emt
00:00:58]} hxg6 {[%clk 00:04:59]} {[%emt 00:00:01]} 19. Bc2 {[%clk 00:02:09]}
{[%emt 00:00:28]} Nc4 {[%clk 00:04:49]} {[%emt 00:00:15]} 20. Bc1 {[%clk
00:01:51]} {[%emt 00:00:23]} b5 {[%clk 00:04:14]} {[%emt 00:00:40]} 21. a3
{[%clk 00:01:34]} {[%emt 00:00:23]} a6 {[%clk 00:04:00]} {[%emt 00:00:19]} 22.
Nd4 {[%clk 00:01:16]} {[%emt 00:00:23]} e5 {[%clk 00:03:48]} {[%emt 00:00:15]}
23. Nde2 {[%clk 00:00:39]} {[%emt 00:00:42]} Ng4 {[%clk 00:03:09]} {[%emt
00:00:44]} 24. Rd7 {[%clk 00:00:22]} {[%emt 00:00:23]} Bc6 {[%clk 00:03:00]}
{[%emt 00:00:14]} 25. Ra7 {[%clk 00:00:20]} {[%emt 00:00:07]} Nge3 {[%clk
00:02:40]} {[%emt 00:00:25]} 26. Bxe3 {[%clk 00:00:19]} {[%emt 00:00:07]} Nxe3
{[%clk 00:02:43]} {[%emt 00:00:02]} 27. Rc1 {[%clk 00:00:23]} Bh6 {[%clk
00:01:53]} {[%emt 00:00:55]} 28. Be4 {[%clk 00:00:21]} {[%emt 00:00:07]} Bxe4
{[%clk 00:01:39]} {[%emt 00:00:19]} 29. Nxe4 {[%clk 00:00:25]} f5 {[%clk
00:01:41]} {[%emt 00:00:03]} 30. Rxa6 {[%clk 00:00:14]} {[%emt 00:00:17]} fxe4
{[%clk 00:01:42]} {[%emt 00:00:04]} 31. Rxg6+ {[%clk 00:00:17]} {[%emt
00:00:01]} Kh7 {[%clk 00:01:45]} 32. Re6 {[%clk 00:00:13]} {[%emt 00:00:10]}
Rcd8 {[%clk 00:01:33]} {[%emt 00:00:17]} 33. Re1 {[%clk 00:00:11]} {[%emt
00:00:08]} Nc2 {[%clk 00:01:18]} {[%emt 00:00:19]} 34. Rb1 {[%clk 00:00:09]}
{[%emt 00:00:07]} Rd2 {[%clk 00:01:21]} {[%emt 00:00:02]} 35. Rxe5 {[%clk
00:00:11]} {[%emt 00:00:04]} Rxe2 {[%clk 00:01:22]} {[%emt 00:00:03]} 0-1

[Event "Dalheimers Hus Rapid Open"]
[Site "Dalheimers Hus, Slottsskogsgatan 12, Gothenburg, Sweden"]
[Date "2024.04.14"]
[Round "1.4"]
[White "Cramling, Pia"]
[Black "Green, David"]
[Result "1-0"]
[TimeControl "15 minutes + 5 seconds per move from move one."]
[WhiteTitle "GM"]
[WhiteFideId "1700030"]
[BlackFideId "1769332"]
[WhiteElo "2377"]
[BlackElo "1804"]

1. d4 {[%clk 00:15:08]} {[%emt 00:00:02]} d5 {[%clk 00:15:05]} {[%emt
00:00:05]} 2. c4 {[%clk 00:15:10]} {[%emt 00:00:02]} c6 {[%clk 00:14:52]}
{[%emt 00:00:19]} 3. Nf3 {[%clk 00:15:11]} {[%emt 00:00:04]} Nf6 {[%clk
00:14:53]} {[%emt 00:00:04]} 4. Qc2 {[%clk 00:14:56]} {[%emt 00:00:19]} e6
{[%clk 00:14:33]} {[%emt 00:00:25]} 5. Bg5 {[%clk 00:14:57]} {[%emt 00:00:04]}
Be7 {[%clk 00:14:23]} {[%emt 00:00:16]} 6. e3 {[%clk 00:14:53]} {[%emt
00:00:08]} O-O {[%clk 00:13:59]} {[%emt 00:00:30]} 7. Nc3 {[%clk 00:14:52]}
{[%emt 00:00:06]} Nbd7 {[%clk 00:13:08]} {[%emt 00:00:56]} 8. Rd1 {[%clk
00:14:46]} {[%emt 00:00:10]} h6 {[%clk 00:11:42]} {[%emt 00:01:32]} 9. Bh4
{[%clk 00:14:43]} {[%emt 00:00:07]} dxc4 {[%clk 00:10:21]} {[%emt 00:01:27]} 10.
Bxc4 {[%clk 00:14:42]} {[%emt 00:00:05]} Nd5 {[%clk 00:08:44]} {[%emt
00:01:42]} 11. Bg3 {[%clk 00:14:35]} {[%emt 00:00:11]} N7b6 {[%clk 00:06:30]}
{[%emt 00:02:21]} 12. Be2 {[%clk 00:14:27]} {[%emt 00:00:12]} Bd7 {[%clk
00:04:33]} {[%emt 00:02:03]} 13. O-O {[%clk 00:14:19]} {[%emt 00:00:12]} f5
{[%clk 00:02:34]} {[%emt 00:02:04]} 14. Ne5 {[%clk 00:12:31]} {[%emt 00:01:53]}
Be8 {[%clk 00:02:05]} {[%emt 00:00:35]} 15. Nd3 {[%clk 00:11:38]} {[%emt
00:00:57]} Bd6 {[%clk 00:01:31]} {[%emt 00:00:39]} 16. Nc5 {[%clk 00:10:55]}
{[%emt 00:00:48]} Bxg3 {[%clk 00:00:27]} {[%emt 00:01:10]} 17. hxg3 {[%clk
00:10:55]} {[%emt 00:00:04]} Qc8 {[%clk 00:00:13]} {[%emt 00:00:20]} 18. e4
{[%clk 00:10:43]} {[%emt 00:00:16]} Ne7 {[%clk 00:00:07]} {[%emt 00:00:11]} 19.
a4 {[%clk 00:10:02]} {[%emt 00:00:47]} Bf7 {[%clk 00:00:06]} {[%emt 00:00:07]}
20. b4 {[%clk 00:09:36]} {[%emt 00:00:30]} Nd7 {[%clk 00:00:10]} {[%emt
00:00:01]} 21. Bc4 {[%clk 00:09:19]} {[%emt 00:00:21]} Nb6 {[%clk 00:00:11]}
{[%emt 00:00:05]} 22. Ba2 {[%clk 00:09:01]} {[%emt 00:00:22]} Kh8 {[%clk
00:00:15]} {[%emt 00:00:02]} 23. a5 {[%clk 00:08:44]} {[%emt 00:00:21]} Nd7
{[%clk 00:00:09]} {[%emt 00:00:12]} 24. Nxe6 {[%clk 00:08:36]} {[%emt
00:00:11]} Bxe6 {[%clk 00:00:10]} {[%emt 00:00:06]} 25. Bxe6 {[%clk 00:08:37]}
{[%emt 00:00:04]} fxe4 {[%clk 00:00:10]} {[%emt 00:00:06]} 26. Qxe4 {[%clk
00:07:40]} {[%emt 00:01:00]} Nf6 {[%clk 00:00:07]} {[%emt 00:00:09]} 27. Qe5
{[%clk 00:06:51]} {[%emt 00:00:52]} Qb8 {[%clk 00:00:07]} {[%emt 00:00:07]} 28.
Bb3 {[%clk 00:06:30]} {[%emt 00:00:25]} Qxe5 {[%clk 00:00:07]} {[%emt
00:00:06]} 29. dxe5 {[%clk 00:06:32]} {[%emt 00:00:03]} Ng4 {[%clk 00:00:10]}
{[%emt 00:00:02]} 30. Rd7 {[%clk 00:05:48]} {[%emt 00:00:48]} Rae8 {[%clk
00:00:13]} {[%emt 00:00:03]} 31. f4 {[%clk 00:05:13]} {[%emt 00:00:40]} Ne3
{[%clk 00:00:08]} {[%emt 00:00:10]} 32. Re1 {[%clk 00:05:05]} {[%emt 00:00:11]}
N3d5 {[%clk 00:00:12]} {[%emt 00:00:02]} 33. Nxd5 {[%clk 00:04:59]} {[%emt
00:00:12]} Nxd5 {[%clk 00:00:12]} {[%emt 00:00:05]} 34. Bxd5 {[%clk 00:05:01]}
{[%emt 00:00:03]} cxd5 {[%clk 00:00:11]} {[%emt 00:00:06]} 35. Rxd5 {[%clk
00:04:47]} {[%emt 00:00:18]} Rd8 {[%clk 00:00:08]} {[%emt 00:00:09]} 36. Red1
{[%clk 00:04:44]} {[%emt 00:00:08]} Rxd5 {[%clk 00:00:10]} {[%emt 00:00:03]} 37.
Rxd5 {[%clk 00:04:47]} {[%emt 00:00:02]} Rf7 {[%clk 00:00:08]} {[%emt
00:00:06]} 38. e6 {[%clk 00:04:39]} {[%emt 00:00:14]} Re7 {[%clk 00:00:10]}
{[%emt 00:00:03]} 39. f5 {[%clk 00:04:41]} {[%emt 00:00:02]} a6 {[%clk
00:00:08]} {[%emt 00:00:08]} 40. Rd8+ {[%clk 00:04:39]} {[%emt 00:00:07]} Kh7
{[%clk 00:00:11]} {[%emt 00:00:03]} 41. Rd7 {[%clk 00:04:42]} {[%emt 00:00:02]}
Re8 {[%clk 00:00:12]} {[%emt 00:00:04]} 42. Rxb7 {[%clk 00:04:41]} {[%emt
00:00:06]} Kg8 {[%clk 00:00:14]} {[%emt 00:00:03]} 43. g4 {[%clk 00:04:39]}
{[%emt 00:00:06]} Kf8 {[%clk 00:00:18]} {[%emt 00:00:01]} 44. b5 {[%clk
00:04:35]} {[%emt 00:00:09]} axb5 {[%clk 00:00:19]} {[%emt 00:00:05]} 45. a6
{[%clk 00:04:38]} {[%emt 00:00:02]} b4 {[%clk 00:00:14]} {[%emt 00:00:10]} 46.
a7 {[%clk 00:04:41]} {[%emt 00:00:02]} b3 {[%clk 00:00:14]} {[%emt 00:00:05]}
47. Rxb3 {[%clk 00:04:43]} {[%emt 00:00:03]} Ke7 {[%clk 00:00:14]} {[%emt
00:00:05]} 48. Rb8 {[%clk 00:04:46]} {[%emt 00:00:02]} 1-0

[Event "Dalheimers Hus Rapid Open"]
[Site "Dalheimers Hus, Slottsskogsgatan 12, Gothenburg, Sweden"]
[Date "2024.04.14"]
[Round "1.5"]
[White "Zejak, Branislav"]
[Black "Winsnes, Rikard"]
[Result "0-1"]
[TimeControl "15 minutes + 5 seconds per move from move one."]
[BlackTitle "IM"]
[WhiteFideId "1722565"]
[BlackFideId "1700430"]
[WhiteElo "1801"]
[BlackElo "2352"]

1. c4 {[%clk 00:15:06]} {[%emt 00:00:04]} c5 {[%clk 00:15:04]} {[%emt
00:00:06]} 2. Nc3 {[%clk 00:15:00]} {[%emt 00:00:11]} Nc6 {[%clk 00:15:03]}
{[%emt 00:00:07]} 3. Nf3 {[%clk 00:14:56]} {[%emt 00:00:09]} e5 {[%clk
00:15:02]} {[%emt 00:00:05]} 4. d3 {[%clk 00:14:41]} {[%emt 00:00:20]} g6
{[%clk 00:14:52]} {[%emt 00:00:15]} 5. e4 {[%clk 00:14:13]} {[%emt 00:00:33]}
Bg7 {[%clk 00:14:49]} {[%emt 00:00:08]} 6. Be2 {[%clk 00:14:09]} {[%emt
00:00:08]} Nge7 {[%clk 00:14:39]} {[%emt 00:00:16]} 7. O-O {[%clk 00:13:52]}
{[%emt 00:00:22]} O-O {[%clk 00:14:41]} {[%emt 00:00:02]} 8. Be3 {[%clk
00:13:31]} {[%emt 00:00:27]} d6 {[%clk 00:14:42]} {[%emt 00:00:04]} 9. Qd2
{[%clk 00:13:04]} {[%emt 00:00:32]} f5 {[%clk 00:13:57]} {[%emt 00:00:50]} 10.
Bh6 {[%clk 00:12:55]} {[%emt 00:00:14]} f4 {[%clk 00:13:47]} {[%emt 00:00:15]}
11. Bxg7 {[%clk 00:12:53]} {[%emt 00:00:08]} Kxg7 {[%clk 00:13:50]} 12. Nd5
{[%clk 00:12:43]} {[%emt 00:00:15]} h6 {[%clk 00:12:54]} {[%emt 00:01:00]} 13.
Ne1 {[%clk 00:10:07]} {[%emt 00:02:42]} g5 {[%clk 00:11:47]} {[%emt 00:01:12]}
14. f3 {[%clk 00:10:06]} {[%emt 00:00:06]} h5 {[%clk 00:11:18]} {[%emt
00:00:34]} 15. Nc2 {[%clk 00:08:55]} {[%emt 00:01:16]} Nxd5 {[%clk 00:10:38]}
{[%emt 00:00:45]} 16. cxd5 {[%clk 00:08:54]} {[%emt 00:00:06]} Ne7 {[%clk
00:10:17]} {[%emt 00:00:26]} 17. b4 {[%clk 00:08:45]} {[%emt 00:00:14]} b6
{[%clk 00:10:10]} {[%emt 00:00:12]} 18. a4 {[%clk 00:07:24]} {[%emt 00:01:26]}
Ng6 {[%clk 00:09:09]} {[%emt 00:01:06]} 19. Na3 {[%clk 00:05:37]} {[%emt
00:01:52]} g4 {[%clk 00:08:25]} {[%emt 00:00:48]} 20. bxc5 {[%clk 00:05:28]}
{[%emt 00:00:14]} bxc5 {[%clk 00:08:28]} {[%emt 00:00:03]} 21. Nc4 {[%clk
00:05:31]} {[%emt 00:00:02]} Kh7 {[%clk 00:05:58]} {[%emt 00:02:35]} 22. Qa5
{[%clk 00:04:16]} {[%emt 00:01:20]} Qe7 {[%clk 00:05:22]} {[%emt 00:00:41]} 23.
Rab1 {[%clk 00:03:28]} {[%emt 00:00:53]} Rg8 {[%clk 00:03:57]} {[%emt
00:01:30]} 24. Nb6 {[%clk 00:01:49]} {[%emt 00:01:45]} Qc7 {[%clk 00:03:17]}
{[%emt 00:00:44]} 25. Nc4 {[%clk 00:01:53]} Qe7 {[%clk 00:01:21]} {[%emt
00:02:01]} 26. Nb6 {[%clk 00:01:52]} {[%emt 00:00:05]} Rb8 {[%clk 00:00:50]}
{[%emt 00:00:37]} 27. Nxc8 {[%clk 00:01:52]} {[%emt 00:00:05]} Rgxc8 {[%emt
00:00:38]} 28. Rb5 {[%clk 00:01:22]} Rxb5 {[%clk 00:00:49]} {[%emt 00:00:09]}
29. Qxb5 {[%clk 00:01:13]} {[%emt 00:00:13]} g3 {[%clk 00:00:44]} {[%emt
00:00:10]} 30. h3 {[%clk 00:01:07]} {[%emt 00:00:11]} Nf8 {[%clk 00:00:38]}
{[%emt 00:00:11]} 31. Rb1 {[%clk 00:01:08]} {[%emt 00:00:04]} Qc7 {[%clk
00:00:37]} {[%emt 00:00:06]} 32. Qb7 {[%clk 00:01:07]} {[%emt 00:00:06]} Nd7
{[%clk 00:00:37]} {[%emt 00:00:05]} 33. a5 {[%clk 00:00:58]} {[%emt 00:00:15]}
Kg7 {[%clk 00:00:27]} {[%emt 00:00:15]} 34. a6 {[%clk 00:00:55]} {[%emt
00:00:07]} Nb6 {[%clk 00:00:25]} {[%emt 00:00:07]} 35. Qxc7+ {[%clk 00:00:53]}
{[%emt 00:00:07]} Rxc7 {[%clk 00:00:30]} {[%emt 00:00:01]} 36. Rc1 {[%clk
00:00:32]} {[%emt 00:00:26]} Kf7 {[%clk 00:00:33]} {[%emt 00:00:02]} 37. Kf1
{[%clk 00:00:31]} {[%emt 00:00:05]} Ke7 {[%clk 00:00:37]} {[%emt 00:00:01]} 38.
Ke1 {[%clk 00:00:35]} {[%emt 00:00:02]} Rc8 {[%clk 00:00:41]} 39. Kd2 {[%clk
00:00:34]} {[%emt 00:00:06]} Kd7 {[%clk 00:00:35]} {[%emt 00:00:11]} 40. Kc3
{[%clk 00:00:07]} {[%emt 00:00:32]} Kc7 {[%clk 00:00:39]} {[%emt 00:00:01]} 41.
Kb2 {[%clk 00:00:10]} {[%emt 00:00:02]} Rb8 {[%clk 00:00:43]} 42. Kc3 {[%clk
00:00:12]} {[%emt 00:00:03]} Na4+ {[%clk 00:00:46]} {[%emt 00:00:02]} 43. Kd2
{[%clk 00:00:13]} {[%emt 00:00:04]} Rb6 {[%clk 00:00:50]} 44. Ra1 {[%clk
00:00:08]} {[%emt 00:00:09]} Rb4 {[%clk 00:00:50]} {[%emt 00:00:05]} 45. Kc2
{[%clk 00:00:07]} {[%emt 00:00:07]} Kb6 {[%clk 00:00:52]} {[%emt 00:00:02]} 46.
Rb1 {[%clk 00:00:10]} {[%emt 00:00:02]} Rxb1 {[%clk 00:00:55]} {[%emt
00:00:02]} 47. Kxb1 {[%clk 00:00:14]} {[%emt 00:00:01]} Nc3+ {[%clk 00:01:00]}
0-1